Cogmind - Beta 11.1 *** ADVENTURER MODE // 2022.08.03 @ 21:41:04 Player: Nagash Result: Destroyed by G-47 Trooper with Particle Gun Performance ------------- Evolutions (2) 1000 Regions Visited (3) 600 Robots Destroyed (24) 120 Value Destroyed (679) 679 Prototype IDs (0) 0 Alien Tech Used (0) 0 Bonus (26) 26 TOTAL SCORE: 2425 Bonus ------- High Alert Combat Kills 26 Cogmind --------- Core Integrity 0/550 Matter 280/300 Energy 80/100 System Corruption 0% Temperature Cool (9) Movement Core (500) Ox9 Location -8/Materials Parts ------- > --- POWER (2) -------- (None) > --- PROPULSION (3) --- (None) > --- UTILITY (4) ------ Large Storage Unit Advanced ECM Suite > --- WEAPON (2) ------- Assault Rifle Remote Datajack > --- INVENTORY (15) --- Improved Ion Engine Nuclear Core Small Storage Unit Signal Interpreter Signal Interpreter Advanced ECM Suite Light Armor Plating Hardened Light Armor Plating Light Assault Rifle Heavy Mace Peak State ------------ > --- POWER ------------ Nuclear Core Nuclear Core > --- PROPULSION ------- Wheel Wheel Compact Wheel > --- UTILITY ---------- Large Storage Unit Structural Scanner Improved Terrain Scanner Advanced ECM Suite > --- WEAPON ----------- Heavy Assault Rifle Light Cannon > --- INVENTORY -------- Improved Ion Engine Nuclear Core Aluminum Leg Aluminum Leg Aluminum Leg Small Storage Unit Signal Interpreter Signal Interpreter Advanced ECM Suite Light Armor Plating Hardened Light Armor Plating Assault Rifle Light Assault Rifle Remote Datajack Heavy Mace [Rating: 23] Favorites ----------- Power Ion Engine Engine Ion Engine Power Core Nuclear Core Propulsion Compact Wheel Leg Aluminum Leg Wheel Compact Wheel Utility Large Storage Unit Device Structural Scanner Storage Large Storage Unit Weapon Light Cannon Ballistic Gun Light Assault Rifle Ballistic Cannon Light Cannon Special Weapon Remote Datajack Impact Weapon Heavy Mace Build | -11 -10 -9 -8 ------- Run | Scr Mat Mat Mat Slots Evolved 4 | . . 2 2 Power 1 | . . . 1 Propulsion 1 | . . 1 . Utility 2 | . . 1 1 Weapon . | . . . . Parts Attached 29 | 6 4 9 10 Power 5 | 1 . 2 2 Engine 3 | 1 . 2 . Core 2 | . . . 2 Reactor . | . . . . Propulsion 7 | 2 . 2 3 Treads . | . . . . Leg 3 | . . . 3 Wheel 4 | 2 . 2 . Hover . | . . . . Flight . | . . . . Utility 9 | 1 3 3 2 Device 5 | . 1 2 2 Storage 4 | 1 2 1 . Processor . | . . . . Hackware . | . . . . Protection . | . . . . Artifact . | . . . . Weapon 8 | 2 1 2 3 Energy Gun . | . . . . Energy Cannon . | . . . . Ballistic Gun 5 | 2 . 2 1 Ballistic Cannon 1 | . 1 . . Launcher . | . . . . Special Weapon 1 | . . . 1 Impact Weapon 1 | . . . 1 Slashing Weapon . | . . . . Piercing Weapon . | . . . . Special Melee Weapon . | . . . . Unidentified Prototypes . | . . . . Parts Lost 13 | . . 1 12 Power 2 | . . . 2 Propulsion 6 | . . . 6 Utility 3 | . . 1 2 Weapon 2 | . . . 2 Highest Loss Streak 10 | . . 1 10 To Critical Strikes . | . . . . Average Slot Usage (%) 93 | . 96 99 79 Engine 9 | . 14 11 2 Core 2 | . . . 10 Leg 1 | . . . 5 Wheel 27 | . 28 33 16 Device 19 | . 10 21 20 Storage 10 | . 14 11 9 Ballistic Gun 12 | . 25 11 6 Ballistic Cannon 7 | . 2 11 5 Naked Turns . | . . . . Heaviest Build 45 | 12 28 36 45 Greatest Support 42 | 26 26 42 36 Greatest Overweight (x) 9 | . 1 . 9 Average Overweight (x) . | . . . 1 Largest Inventory Capacity 15 | 8 15 15 15 Average Capacity 13 | 6 8 14 15 Most Carried 15 | 6 8 15 15 Average Carried 10 | 3 7 11 13 Final Capacity 15 | 8 8 15 15 Final Carried 15 | 6 8 15 10 Class Distribution -------------------- 51% | Infiltrator-Mutant 48% | Mutant Dominant Class ---------------- Mutant | -10/Materials Infiltrator-Mutant | -9/Materials Infiltrator-Mutant | -8/Materials Resources | -11 -10 -9 -8 ----------- Run | Scr Mat Mat Mat Matter Collected 702 | 135 47 388 132 Remotely . | . . . . Salvage Created 700 | . 47 322 331 Parts 42 | . 7 28 7 Haulers Intercepted . | . . . . Recyclers Shooed . | . . . . Parts Field Recycled . | . . . . Retrieved Matter . | . . . . Parts Self-Destructed . | . . . . Prevented . | . . . . Kills | -11 -10 -9 -8 ------- Run | Scr Mat Mat Mat Combat Hostiles Destroyed 20 | . 3 10 7 Guns 9 | . 3 6 . Cannons 6 | . . 4 2 Classes Destroyed 5 | . 1 4 . Tunneler 1 | . . 1 . Watcher 3 | . . 3 . Swarmer 8 | . 3 5 . Grunt 7 | . . 1 6 Sentry 5 | . . 4 1 Best Kill Streak 5 | . 3 4 5 Combat Bots Only 5 | . 3 3 5 Max Kills in Single Turn 2 | . 1 2 1 Gunslinging . | . . . . Exploded . | . . . . Melee . | . . . . Uniques/NPCs Destroyed . | . . . . Combat | -11 -10 -9 -8 -------- Run | Scr Mat Mat Mat Damage Taken 1817 | . 30 313 1474 Core 631 | . . 77 554 Absorbed by Shields . | . . . . Core Remaining (%) 93 | 100 100 80 . Volleys Fired 47 | . 5 30 12 Largest 2 | . 2 2 2 Hottest 58 | . 40 58 58 Shots Fired 90 | . 10 60 20 Gun 51 | . 10 30 11 Cannon 38 | . . 30 8 Launcher . | . . . . Special 1 | . . . 1 Kinetic 89 | . 10 60 19 Thermal . | . . . . Explosive . | . . . . Electromagnetic . | . . . . Robot Hit Streak 15 | . 7 15 15 Robot Miss Streak 2 | . 1 2 1 Penetration Max . | . . . . Secondary Targets 1 | . 1 . . Max Gunslinging Chain 1 | . 1 . . Shots Hit Robots 75 | . 8 44 23 Core Hits 33 | . 4 21 8 Critical Kills . | . . . . Critical Parts Destroyed 4 | . . . 4 Critical Strikes 5 | . . 1 4 Blast 1 | . . 1 . Smash 4 | . . . 4 Melee Attacks 6 | . . . 6 Impact 6 | . . . 6 Slashing . | . . . . Piercing . | . . . . Sneak Attacks . | . . . . Combat Hostiles . | . . . . Follow-up Attacks . | . . . . Damage Inflicted 1253 | . 69 705 479 Guns 564 | . 69 357 138 Cannons 473 | . . 348 125 Explosions . | . . . . Melee 216 | . . . 216 Ramming . | . . . . Kinetic 1037 | . 69 705 263 Thermal . | . . . . Explosive . | . . . . Electromagnetic . | . . . . Impact 216 | . . . 216 Slashing . | . . . . Piercing . | . . . . Highest Corruption . | . . . . Average Corruption . | . . . . Corruption Purged . | . . . . Corruption Blocked . | . . . . Overload Shots . | . . . . Overflow Damage 193 | . . 17 176 Projectiles 17 | . . 17 . Explosions . | . . . . Melee 176 | . . . 176 Knockbacks 7 | . . 1 6 Impact 3 | . . . 3 Kinetic 4 | . . 1 3 Secondary . | . . . . Self-Inflicted Damage . | . . . . Shots . | . . . . Rammed . | . . . . Targets Rammed . | . . . . Kicked . | . . . . Crushed . | . . . . Highest Temperature 149 | . . 23 149 Average Temperature 55 | . . 7 71 Received Heat Transfer 1263 | . . 111 1152 Siege Activations . | . . . . Robots Corrupted . | . . . . Combat Hostiles . | . . . . Parts Fried 6 | . . . 6 Impact Corruptions 6 | . . . 6 Robots Melted . | . . . . Combat Hostiles . | . . . . Parts Melted . | . . . . Heat Transferred . | . . . . Parts Sabotaged . | . . . . Parts Stolen . | . . . . Parts Stripped . | . . . . Power Chain Reactions . | . . . . Missiles Intercepted . | . . . . Alert | -11 -10 -9 -8 ------- Run | Scr Mat Mat Mat Peak Influence 516 | . 85 516 244 Initial 113 | . . 30 113 Average 191 | . 32 276 172 Maximum Alert Level 2 | . . 2 1 Low Security (%) 53 | 100 100 24 68 Level 1 36 | . . 56 31 Level 2 10 | . . 19 . Level 3 . | . . . . Level 4 . | . . . . Level 5 . | . . . . High Security . | . . . . Max Security . | . . . . Squads Dispatched 3 | . . . 3 Investigation 1 | . . . 1 Extermination . | . . . . Reinforcement 2 | . . . 2 Assault . | . . . . Garrison . | . . . . Intercept . | . . . . Searches Triggered . | . . . . Construction Impeded . | . . . . Haulers Reinforced . | . . . . Active Scanning Responses . | . . . . Cargo Convoy Interrupts . | . . . . Stealth | -11 -10 -9 -8 --------- Run | Scr Mat Mat Mat Distress Signals 3 | . . 3 . Communications Jammed . | . . . . Distress Signals . | . . . . Times Spotted 39 | . 4 18 17 Peak Tracking Total 9 | . 3 5 9 Tactical Retreats 5 | . . 5 . Traps | -11 -10 -9 -8 ------- Run | Scr Mat Mat Mat Traps Triggered 1 | . . . 1 Indirectly . | . . . . Trap Hack Attempts . | . . . . Triggered . | . . . . Disarmed . | . . . . Reprogrammed . | . . . . Reused . | . . . . Traps Extracted . | . . . . Installed . | . . . . Triggered . | . . . . Machines | -11 -10 -9 -8 ---------- Run | Scr Mat Mat Mat Machines Disabled 1 | . . 1 . Max in Single Turn 1 | . . 1 . Machines Sabotaged . | . . . . Garrisons Compromised . | . . . . Overloaded Fab Kills . | . . . . Hacking | -11 -10 -9 -8 --------- Run | Scr Mat Mat Mat Machines Accessed . | . . . . Terminals . | . . . . Fabricators . | . . . . Repair Stations . | . . . . Recycling Units . | . . . . Scanalyzers . | . . . . Garrison Access . | . . . . Total Hacks . | . . . . Successful . | . . . . Failed . | . . . . Catastrophic . | . . . . Database Lockouts . | . . . . Manual . | . . . . Terminals . | . . . . Fabricators . | . . . . Repair Stations . | . . . . Recycling Units . | . . . . Scanalyzers . | . . . . Garrison Access . | . . . . Terminal Hacks . | . . . . Fabricator Hacks . | . . . . Repair Station Hacks . | . . . . Recycling Unit Hacks . | . . . . Scanalyzer . | . . . . Garrison Access Hacks . | . . . . Unauthorized Hacks . | . . . . Terminals . | . . . . Fabricators . | . . . . Repair Stations . | . . . . Recycling Units . | . . . . Scanalyzers . | . . . . Garrison Access . | . . . . Data Cores Recovered . | . . . . Used . | . . . . Hacking Detections . | . . . . Full Trace Events . | . . . . Feedback Events . | . . . . Feedback Blocked . | . . . . Robot Schematics Acquired . | . . . . Robots Built . | . . . . Authchips . | . . . . Time . | . . . . Total Robot Build Rating . | . . . . Part Schematics Acquired . | . . . . Parts Built . | . . . . Authchips . | . . . . Time . | . . . . Total Part Build Rating . | . . . . Parts Repaired . | . . . . Time . | . . . . Parts Recycled . | . . . . Recycled Matter . | . . . . Retrieved Matter . | . . . . Retrieved Components . | . . . . Parts Scanalyzed . | . . . . Part Schematics Acquired . | . . . . Parts Damaged . | . . . . Bothacking | -11 -10 -9 -8 ------------ Run | Scr Mat Mat Mat Used RIF Installer . | . . . . Robots Hacked 1 | . . . 1 Non-combat . | . . . . Combat 1 | . . . 1 Robot Hacks Applied 1 | . . . 1 parse_system 1 | . . . 1 Relay Couplers Released . | . . . . Fabnet Peak Effective % . | . . . . Robots Rewired . | . . . . Allies Hacked . | . . . . Hacks Repelled . | . . . . Allies | -11 -10 -9 -8 -------- Run | Scr Mat Mat Mat Total Allies . | . . . . Largest Group . | . . . . Highest-Rated Group . | . . . . Highest-Rated Ally . | . . . . Total Orders . | . . . . Ally Attacks . | . . . . Total Damage . | . . . . Kills . | . . . . Allies Corrupted . | . . . . Allies Melted . | . . . . Intel | -11 -10 -9 -8 ------- Run | Scr Mat Mat Mat Robot Analysis Total . | . . . . Derelict Logs Recovered . | . . . . Drone Launches . | . . . . Drone Recoveries . | . . . . Exploration | -11 -10 -9 -8 ------------- Run | Scr Mat Mat Mat Turns Passed 959 | 69 152 494 244 Spaces Moved 703 | 60 136 396 111 Core 6 | 3 . . 3 Treads . | . . . . Legs 28 | . . . 28 Wheels 669 | 57 136 396 80 Hover . | . . . . Flight . | . . . . Fastest Speed 50 | 50 90 86 101 Average Speed 97 | 88 91 90 133 Slowest Speed 500 | 100 105 93 500 Overloaded Moves . | . . . . Propulsion Burnouts . | . . . . Robots Hopped . | . . . . Cave-ins Triggered . | . . . . Exploration Rate (%) 22 | 5 34 37 14 Regions Visited 3 Branch Regions . Pre-discovered Areas . | . . . . Known Exits Taken . | . . . . Unknown Exits Taken 3 | 1 1 1 . Scrap Searched . | . . . . Spaces Dug . | . . . . Terrain Destroyed . | . . . . Melee . | . . . . Projectile . | . . . . AOE . | . . . . Terrain Rammed . | . . . . Walls Destroyed . | . . . . Machines Disabled . | . . . . Actions | -11 -10 -9 -8 --------- Run | Scr Mat Mat Mat Total 882 | 73 156 475 178 Wait 49 | 1 2 11 35 Move 700 | 59 135 395 111 Hop . | . . . . Pick Up 35 | 7 5 20 3 Fast Attach 6 | 5 1 . . Attach 14 | 1 2 4 7 Detach 2 | . 2 . . Swap 9 | . 1 5 3 Drop 14 | . 3 10 1 Fire 47 | . 5 30 12 Melee 6 | . . . 6 Ram . | . . . . Kick . | . . . . Crush . | . . . . Escape Stasis . | . . . . Rewire . | . . . . Trap . | . . . . Miscellaneous . | . . . . Route ------- -11/Scrapyard -10/Materials -9/Materials (discovered 2 exits: [*Mat] / [*Min]) -8/Materials History --------- Turn | Location | Event 19 | -11/Scrapyard | Discovered new exit (range 13) 70 | -11/Scrapyard | Entered Materials 199 | -10/Materials | Discovered new exit (range 9) 222 | -10/Materials | Entered another Materials area 222 | -9/Materials | Evolved 2 slots: Propulsion x1, Utility x1 335 | -9/Materials | Discovered new exit (range 7) 516 | -9/Materials | Build established: Infiltrator-Mutant 642 | -9/Materials | Discovered new exit (range 8) 716 | -9/Materials | Entered another Materials area 716 | -8/Materials | Evolved 2 slots: Power x1, Utility x1 887 | -8/Materials | Core integrity fell below 50% 935 | -8/Materials | Lost 10 parts (2p4n2u2w) 939 | -8/Materials | Core integrity fell below 20% 960 | -8/Materials | Destroyed by G-47 Trooper with Particle Gun Last Messages --------------- 00891_ Destroyed Imp. Heat Sink. 00891_ G-47 Trooper system corrupted by crushing effect. 00891_ G-47 Trooper knocked back. 00892_ G-47 Trooper system terminally corrupted. 00892_ Lgt. Nuclear Core fried. 00892_ Aluminum Leg fried. 00895_ Acquired 37 matter. 00898_ Critical hit (Burn: +37). 00901_ Nuclear Core destroyed. 00904_ Aluminum Leg destroyed. 00910_ K-01 Serf collects debris. 00923_ G-47 Trooper destroyed. 00925_ K-01 Serf collects debris. 00932_ Critical hit (Burn: +37). 00940_ Aluminum Leg destroyed. 00943_ Jacked G-47 Trooper... >>parse_system Reading system data... 00946_ Aluminum Leg destroyed. 00959_ R-06 Scavenger collects Imp. Heat Sink. Map ----- +----------------------------------------------------+ | ?????????????????????????????????????????????????? | | ?????????????????????????????????????????????????? | | ?????????????????????????????????????????????????? | | ?????????????????????????????????????????????????? | | ?????????????????????????????????????????????????? | | ?????????????????????????????????????????????????? | | ?????????????????????????????????????????????????? | | ?????????????????????????????????????????????????? | | ?????????????????????????????????????????????????? | | ???????????????????????????? ????????????????????? | | ???????????????????????????? ??????????!?????????? | | ???????????????????????????? ?????????? ?????????? | | ???????????????????????????? ?????????? ?????????? | | ??????????????????????????## #???????? ?????????? | | ?????????????????????????? # #???????? ?????????? | | ?????????????????????????? # +????????/#?????????? | | ?????????????????????????? # #???????? #?????????? | | ?????????????????????????? # #???????# ##????????? | | ?????????????????????????? # #???????# #?????????? | | ??????????????############k# #?????### ###???????? | | ??????????????# # ####### # ??????? | | ??????????????# # g #???????? | | ??????????????# ; u g r = +???????? | | ??????????????# # g a !%[ #??????? | | ??????????????# # ####### #???????? | | ??????????????# ##@ ##?????## ##???? ??? | | ??????????????# ## #?????? # ##???????? | | ??????????????# ## #?????? # ##???????? | | ??????????????# ## +??"??? # ##???????? | | ??????????????########### #?????? # ##?#?????? | | ????????????????????????# #?????? # ########## | | ????????????????????????# #?????? # #########? | | ????????????????????????# #?????? # # ##? | | ????????????????????????#g #?????? # #= "" ##? | | ????????????????????????#ag #?????? # %#%[ T" ##? | | ????????????????????????# #?????? # %%+ % "" ##? | | ????????????????????????# #?????? # #% ##? | | ????????????????????????# #??????## # ! ### | | ????????????????????????# #??????## ########## | | ????????????????????????# ###??#?## # | | ????????????????????????? ?????#?## # | | ??????????????????????????????? ??? # # """ """ | | ???????????????????????????????"??? # # """ """ | | ?????????????????????????????????"? # # """ """ | | ????????????????????????#????????" # # | | ????????????????????????????????? # #####+###+ | | ???????????????????????????? ? """ # = = | | ??????????????????????? ?????? """ + [ | | ???????????????????????????? # """ # """ | | ?????????????????????????? ? # # """ | +----------------------------------------------------+ Best States ------------- Heat Dissipation 31 Energy Generation 23 Energy Capacity 405 Matter Stores 300 Matter Capacity 300 Sight Range 16 Terrain Scan Range 16 Terrain Scan Density 10 ECM Strength 2 Resistance: KI 20 Resistance: TH 20 Resistance: EX 20 Resistance: EM 20 Resistance: I 20 Resistance: S 20 Resistance: P 20 Evasion (%) 42 Offensive Hacking 10 Item Schematics ----------------- None Robot Schematics ------------------ None Fabricated ------------ Nothing Alien Tech Used ----------------- None Achievements -------------- None Challenges ------------ None Game ------ Seed PointyCargoCharge Manual? 0 Play Time 00:33:18 Cumulative 67.4 hours Start 2022.08.03 @ 21:03:17 End 2022.08.03 @ 21:41:04 Sessions 1 Manual Loads 0 Difficulty Adventurer Special Mode None Game No. 48 Rogue 32 Adventurer 16 Explorer 0 Win Type - Total 0 Types 0/0/0/0/0/0/0/0/0 Lore% 15 Gallery% 35 Achievement% 17 Wizard Run 0 Options --------- ASCII 0 Keyboard 0 Movement Numpad Keybinds 0 Fullscreen 1 Font 24/Smallcaps Map View 76x50 Tactical HUD 1 Map Filters NONE Filters NONE Steam 1 RUN: 6940fe5f-8a15-4a6e-a7d6-d60a2ed6b371